Workbook

Sheet Grammy Bump Chart
B1: Year | C1: Artist | D1: Song | E1: Before | F1: After
B2: 1992 | C2: Natalie Cole | D2: Unforgettable with Love | E2: 98000 | F2: 135000
B3: 1993 | C3: Eric Clapton | D3: Unplugged | E3: 155000 | F3: 427000
B4: 1994 | C4: Whitney Houston | D4: The Bodyguard | E4: 136000 | F4: 152000
B5: 1995 | C5: Tony Bennett | D5: MTV Unplugged | E5: 9000 | F5: 38000
B6: 1996 | C6: Alanis Morissette | D6: Jagged Little Pill | E6: 310000 | F6: 492000
B7: 1997 | C7: Celine Dion | D7: Falling into you | E7: 185000 | F7: 239000
B8: 1998 | C8: Bob Dylan | D8: Time out of mind | E8: 22000 | F8: 75000
B9: 1999 | C9: Lauryn Hill | D9: The Miseducation of Lauryn Hill | E9: 249000 | F9: 436000
B10: 2000 | C10: Santana | D10: Supernatural | E10: 436000 | F10: 1024000
B11: 2001 | C11: Steely Dan | D11: Two against nature | E11: 6000 | F11: 57000
B12: 2002 | C12: Soundtrack (multiple artists) | D12: O Brother, Where Art Thou? | E12: 135000 | F12: 457000
B13: 2003 | C13: Norah Jones | D13: Come Away With Me | E13: 284000 | F13: 958000
B14: 2004 | C14: Outkast | D14: Speakerboxxx/ The Love Below | E14: 196000 | F14: 397000
B15: 2005 | C15: Ray Charles | D15: Genius Loves Company | E15: 117000 | F15: 235000
B16: 2006 | C16: U2 | D16: How to Dismantle an Atomic Bomb | E16: 8000 | F16: 50000
B17: 2007 | C17: Dixie Chicks | D17: Taking the Long Way | E17: 19000 | F17: 153000
B18: 2008 | C18: Herbie Hancock | D18: River: The Joni Letters | E18: 10000 | F18: 80000 | I18: =1992 -> 1992 | K18: =I18+1 -> 1993 | M18: =K18+1 -> 1994 | O18: =M18+1 -> 1995 | Q18: =O18+1 -> 1996 | S18: =Q18+1 -> 1997 | U18: =S18+1 -> 1998 | W18: =U18+1 -> 1999 | Y18: =W18+1 -> 2000 | AA18: =Y18+1 -> 2001 | AC18: =AA18+1 -> 2002 | AE18: =AC18+1 -> 2003 | AG18: =AE18+1 -> 2004 | AI18: =AG18+1 -> 2005 | AK18: =AI18+1 -> 2006 | AM18: =AK18+1 -> 2007 | AO18: =AM18+1 -> 2008 | AQ18: =AO18+1 -> 2009 | AS18: =AQ18+1 -> 2010
B19: 2009 | C19: Alison Krauss & Robert Plant | D19: Raising Sand | E19: 11000 | F19: 109000
B20: 2010 | C20: Taylor Swift | D20: Fearless | E20: 66000 | F20: 103000
I21: Source & Inspiration: | O21: Washington Post - Grammy Bump
I22: Techniques used:
B23: Data for chart | D23: Selected Year | E23: 2010 | F23: =MATCH(valSelectedYear,$B$2:$B$20,0) -> 19 | I23: Picture links
B24: x | C24: y | D24: Artist | E24: =TRANSPOSE(INDEX($C$2:$F$20,$F$23,ROWS($D$24:D24))) -> Taylor Swift | I24: Dynamic Chart Legends
A25: 1 | B25: 0 | C25: =INDEX($E$2:$F$20,INT(B25/2)+1,MOD(B25,2)+1) -> 98000 | D25: Song | E25: =TRANSPOSE(INDEX($C$2:$F$20,$F$23,ROWS($D$24:D25))) -> Fearless | I25: INDEX Formula
A26: 2 | B26: 1 | C26: =INDEX($E$2:$F$20,INT(B26/2)+1,MOD(B26,2)+1) -> 135000 | D26: Before | E26: =TRANSPOSE(INDEX($C$2:$F$20,$F$23,ROWS($D$24:D26))) -> 66000 | F26: =TEXT(E26,"#,##0") -> 66,000 | I26: Conditional Formatting
A27: 3 | D27: After | E27: =TRANSPOSE(INDEX($C$2:$F$20,$F$23,ROWS($D$24:D27))) -> 103000 | F27: =TEXT(E27,"#,##0") -> 103,000 | I27: Picture Links made dynamic - product catalog in Excel
A28: 4 | B28: 2 | C28: =INDEX($E$2:$F$20,INT(B28/2)+1,MOD(B28,2)+1) -> 155000 | D28: Change | E28: =E27/E26-1 -> 0.5606060606 | F28: =TEXT(E28,"+0%") -> +56% | I28: Worksheet_SelectionChange Event
A29: 5 | B29: 3 | C29: =INDEX($E$2:$F$20,INT(B29/2)+1,MOD(B29,2)+1) -> 427000
A30: 6
A31: 7 | B31: 4 | C31: =INDEX($E$2:$F$20,INT(B31/2)+1,MOD(B31,2)+1) -> 136000
A32: 8 | B32: 5 | C32: =INDEX($E$2:$F$20,INT(B32/2)+1,MOD(B32,2)+1) -> 152000
A33: 9
A34: 10 | B34: 6 | C34: =INDEX($E$2:$F$20,INT(B34/2)+1,MOD(B34,2)+1) -> 9000
A35: 11 | B35: 7 | C35: =INDEX($E$2:$F$20,INT(B35/2)+1,MOD(B35,2)+1) -> 38000
A36: 12
A37: 13 | B37: 8 | C37: =INDEX($E$2:$F$20,INT(B37/2)+1,MOD(B37,2)+1) -> 310000
A38: 14 | B38: 9 | C38: =INDEX($E$2:$F$20,INT(B38/2)+1,MOD(B38,2)+1) -> 492000
A39: 15
A40: 16 | B40: 10 | C40: =INDEX($E$2:$F$20,INT(B40/2)+1,MOD(B40,2)+1) -> 185000
A41: 17 | B41: 11 | C41: =INDEX($E$2:$F$20,INT(B41/2)+1,MOD(B41,2)+1) -> 239000
A42: 18
A43: 19 | B43: 12 | C43: =INDEX($E$2:$F$20,INT(B43/2)+1,MOD(B43,2)+1) -> 22000
A44: 20 | B44: 13 | C44: =INDEX($E$2:$F$20,INT(B44/2)+1,MOD(B44,2)+1) -> 75000
A45: 21
A46: 22 | B46: 14 | C46: =INDEX($E$2:$F$20,INT(B46/2)+1,MOD(B46,2)+1) -> 249000
A47: 23 | B47: 15 | C47: =INDEX($E$2:$F$20,INT(B47/2)+1,MOD(B47,2)+1) -> 436000
A48: 24
A49: 25 | B49: 16 | C49: =INDEX($E$2:$F$20,INT(B49/2)+1,MOD(B49,2)+1) -> 436000
A50: 26 | B50: 17 | C50: =INDEX($E$2:$F$20,INT(B50/2)+1,MOD(B50,2)+1) -> 1024000
A51: 27
A52: 28 | B52: 18 | C52: =INDEX($E$2:$F$20,INT(B52/2)+1,MOD(B52,2)+1) -> 6000
A53: 29 | B53: 19 | C53: =INDEX($E$2:$F$20,INT(B53/2)+1,MOD(B53,2)+1) -> 57000
A54: 30
A55: 31 | B55: 20 | C55: =INDEX($E$2:$F$20,INT(B55/2)+1,MOD(B55,2)+1) -> 135000
A56: 32 | B56: 21 | C56: =INDEX($E$2:$F$20,INT(B56/2)+1,MOD(B56,2)+1) -> 457000
A57: 33
A58: 34 | B58: 22 | C58: =INDEX($E$2:$F$20,INT(B58/2)+1,MOD(B58,2)+1) -> 284000
A59: 35 | B59: 23 | C59: =INDEX($E$2:$F$20,INT(B59/2)+1,MOD(B59,2)+1) -> 958000
A60: 36
A61: 37 | B61: 24 | C61: =INDEX($E$2:$F$20,INT(B61/2)+1,MOD(B61,2)+1) -> 196000
A62: 38 | B62: 25 | C62: =INDEX($E$2:$F$20,INT(B62/2)+1,MOD(B62,2)+1) -> 397000
A63: 39
A64: 40 | B64: 26 | C64: =INDEX($E$2:$F$20,INT(B64/2)+1,MOD(B64,2)+1) -> 117000
A65: 41 | B65: 27 | C65: =INDEX($E$2:$F$20,INT(B65/2)+1,MOD(B65,2)+1) -> 235000
A66: 42
A67: 43 | B67: 28 | C67: =INDEX($E$2:$F$20,INT(B67/2)+1,MOD(B67,2)+1) -> 8000
A68: 44 | B68: 29 | C68: =INDEX($E$2:$F$20,INT(B68/2)+1,MOD(B68,2)+1) -> 50000
A69: 45
A70: 46 | B70: 30 | C70: =INDEX($E$2:$F$20,INT(B70/2)+1,MOD(B70,2)+1) -> 19000
A71: 47 | B71: 31 | C71: =INDEX($E$2:$F$20,INT(B71/2)+1,MOD(B71,2)+1) -> 153000
A72: 48
A73: 49 | B73: 32 | C73: =INDEX($E$2:$F$20,INT(B73/2)+1,MOD(B73,2)+1) -> 10000
A74: 50 | B74: 33 | C74: =INDEX($E$2:$F$20,INT(B74/2)+1,MOD(B74,2)+1) -> 80000
A75: 51
A76: 52 | B76: 34 | C76: =INDEX($E$2:$F$20,INT(B76/2)+1,MOD(B76,2)+1) -> 11000
A77: 53 | B77: 35 | C77: =INDEX($E$2:$F$20,INT(B77/2)+1,MOD(B77,2)+1) -> 109000
A78: 54
A79: 55 | B79: 36 | C79: =INDEX($E$2:$F$20,INT(B79/2)+1,MOD(B79,2)+1) -> 66000
A80: 56 | B80: 37 | C80: =INDEX($E$2:$F$20,INT(B80/2)+1,MOD(B80,2)+1) -> 103000

Sheet Artist Pics
B2: Artist Name | C2: Image
B3: ='Grammy Bump Chart'!C2 -> Natalie Cole
B4: ='Grammy Bump Chart'!C3 -> Eric Clapton
B5: ='Grammy Bump Chart'!C4 -> Whitney Houston
B6: ='Grammy Bump Chart'!C5 -> Tony Bennett
B7: ='Grammy Bump Chart'!C6 -> Alanis Morissette
B8: ='Grammy Bump Chart'!C7 -> Celine Dion
B9: ='Grammy Bump Chart'!C8 -> Bob Dylan
B10: ='Grammy Bump Chart'!C9 -> Lauryn Hill
B11: ='Grammy Bump Chart'!C10 -> Santana
B12: ='Grammy Bump Chart'!C11 -> Steely Dan
B13: ='Grammy Bump Chart'!C12 -> Soundtrack (multiple artists)
B14: ='Grammy Bump Chart'!C13 -> Norah Jones
B15: ='Grammy Bump Chart'!C14 -> Outkast
B16: ='Grammy Bump Chart'!C15 -> Ray Charles
B17: ='Grammy Bump Chart'!C16 -> U2
B18: ='Grammy Bump Chart'!C17 -> Dixie Chicks
B19: ='Grammy Bump Chart'!C18 -> Herbie Hancock
B20: ='Grammy Bump Chart'!C19 -> Alison Krauss & Robert Plant
B21: ='Grammy Bump Chart'!C20 -> Taylor Swift
